[Event "Ruzomberok GM 2019"]
[Site "Ruzomberok"]
[Date "2019.06.29"]
[Round "1.2"]
[White "Nayhebaver, Martin"]
[Black "Repka, Christopher"]
[Result "1/2-1/2"]
[ECO "B96"]
[WhiteElo "2473"]
[BlackElo "2482"]
[Annotator "ChessBase"]
[PlyCount "66"]
[EventDate "2019.06.29"]
[EventType "tourn"]
[EventCountry "SVK"]
[SourceTitle "playchess.com"]
[Source "ChessBase"]
[SourceQuality "1"]
[TimeControl "40/5400+30:1800+30"]

1. e4 {[%emt 0:00:00]} c5 {[%emt 0:00:00]} 2. Nf3 {[%emt 0:00:00]} d6 {[%emt 0:00:05]} 3. d4 {[%emt 0:00:46]} cxd4 {[%emt 0:00:16]} 4. Nxd4 {[%emt 0:00:12]} Nf6 {[%emt 0:00:09]} 5. Nc3 {[%emt 0:00:07]} a6 {[%emt 0:00:03]} 6. Bg5 {[%emt 0:03:47]} e6 {[%emt 0:12:54]} 7. f4 {[%emt 0:03:00]} h6 {[%emt 0:00:06]} 8. Bh4 {[%emt 0:00:24]} Qb6 {[%emt 0:00:41]} 9. Qd2 {[%emt 0:02:51]} Qxb2 {[%emt 0:03:52]} 10. Rb1 {[%emt 0:01:50]} Qa3 {[%emt 0:00:05]} 11. f5 {[%emt 0:03:31]} Be7 {[%emt 0:00:58]} 12. fxe6 {[%emt 0:01:43]} fxe6 {[%emt 0:00:07]} 13. Bc4 {[%emt 0:03:23]} Nxe4 {[%emt 0:02:27]} 14. Nxe4 {[%emt 0:05:26]} Bxh4+ {[%emt 0:00:04]} 15. g3 {[%emt 0:00:26]} Bg5 {[%emt 0:00:03]} 16. Nxg5 {[%emt 0:01:33]} hxg5 {[%emt 0:00:05]} 17. O-O {[%emt 0:07:56]} Qc5 {[%emt 0:00:06]} 18. Qf2 {[%emt 0:03:09]} Nc6 {[%emt 0:00:16]} 19. Nxe6 {[%emt 0:01:18]} Qxf2+ {[%emt 0:00:07]} 20. Rxf2 {[%emt 0:00:06]} Bxe6 {[%emt 0:00:04]} 21. Bxe6 {[%emt 0:00:08]} Rb8 {[%emt 0:00:03]} 22. Bd5 {[%emt 0:01:31]} Ne5 {[%emt 0:00:43]} 23. Bxb7 {[%emt 0:03:32]} Ke7 {[%emt 0:00:15]} 24. Rb3 {[%emt 0:01:56]} a5 {[%emt 0:00:06]} 25. a4 {[%emt 0:01:04]} Kd7 {[%emt 0:00:34]} 26. Rf1 {[%emt 0:03:15]} Kc7 {[%emt 0:00:05]} 27. Rfb1 {[%emt 0:00:28]} Nd7 {[%emt 0:00:05]} 28. Rb5 {[%emt 0:02:05]} Nc5 {[%emt 0:01:16]} 29. Bd5 {[%emt 0:00:51]} Rhe8 {[%emt 0:00:09]} 30. Kf2 {[%emt 0:01:20]} Rxb5 {[%emt 0:00:36]} 31. Rxb5 {[%emt 0:00:25]} g4 {[%emt 0:00:14]} 32. Rxa5 {[%emt 0:01:43]} Re5 {[%emt 0:00:14]} 33. c4 {[%emt 0:00:56]} Nd3+ {[%emt 0:00:17]} 1/2-1/2

[Event "Ruzomberok GM 2019"]
[Site "Ruzomberok"]
[Date "2019.06.29"]
[Round "1.4"]
[White "Manik, Mikulas"]
[Black "Pacher, Milan"]
[Result "1/2-1/2"]
[ECO "B13"]
[WhiteElo "2399"]
[BlackElo "2434"]
[Annotator "NA"]
[PlyCount "60"]
[EventDate "2019.06.29"]
[EventType "tourn"]
[EventCountry "SVK"]
[SourceTitle "playchess.com"]
[Source "ChessBase"]
[SourceQuality "1"]
[TimeControl "40/5400+30:1800+30"]

1. e4 {[%emt 0:00:00]} c6 {[%emt 0:00:00]} 2. d4 {[%emt 0:00:00]} d5 {[%emt 0:00:02]} 3. exd5 {[%emt 0:00:12]} cxd5 {[%emt 0:00:05]} 4. c4 {[%emt 0:01:03]} Nf6 {[%emt 0:00:07]} 5. Nc3 {[%emt 0:00:12]} Nc6 {[%emt 0:01:04]} 6. Nf3 {[%emt 0:02:47]} Bg4 {[%emt 0:00:43]} 7. cxd5 {[%emt 0:03:29]} Nxd5 {[%emt 0:00:05]} 8. Qb3 {[%emt 0:01:48]} Bxf3 {[%emt 0:02:01]} 9. gxf3 {[%emt 0:00:11]} e6 {[%emt 0:01:05]} 10. Qxb7 {[%emt 0:00:56]} Nxd4 {[%emt 0:00:13]} 11. Bb5+ {[%emt 0:00:14]} Nxb5 {[%emt 0:00:13]} 12. Qc6+ {[%emt 0:00:57]} Ke7 {[%emt 0:00:16]} 13. Qxb5 {[%emt 0:00:20]} Qd7 {[%emt 0:00:41]} 14. Nxd5+ {[%emt 0:01:06]} Qxd5 {[%emt 0:00:09]} 15. Qxd5 {[%emt 0:00:10]} exd5 {[%emt 0:00:05]} 16. Be3 {[%emt 0:04:00]} Ke6 {[%emt 0:03:30]} 17. O-O-O {[%emt 0:02:44]} Bb4 {[%emt 0:07:18]} 18. Rd3 {[%emt 0:02:01]} Rhc8+ {[%emt 0:00:37]} 19. Kb1 {[%emt 0:00:16]} Bc5 {[%emt 0:01:29]} 20. Rhd1 {[%emt 0:00:47]} Bxe3 {[%emt 0:01:22]} 21. Rxe3+ {[%emt 0:01:44]} Kd6 {[%emt 0:00:19]} 22. Red3 {[%emt 0:03:10]} Rc5 {[%emt 0:00:11]} 23. Ra3 {[%emt 0:00:31]} a5 {[%emt 0:00:49]} 24. Rb3 {[%emt 0:00:16]} Rac8 {[%emt 0:01:22]} 25. Rb6+ {[%emt 0:01:49]} R8c6 {[%emt 0:00:29]} 26. Rb7 {[%emt 0:00:17]} Rc7 {[%emt 0:00:05]} 27. Rb6+ {[%emt 0:00:13]} R7c6 {[%emt 0:00:04]} 28. Rb7 {[%emt 0:00:06]} Rc7 {[%emt 0:00:04]} 29. Rb6+ {[%emt 0:00:29]} R7c6 {[%emt 0:00:04]} 30. Rb7 {[%emt 0:00:07]} Rc7 {[%emt 0:00:03]} 1/2-1/2

[Event "Ruzomberok GM 2019"]
[Site "Ruzomberok"]
[Date "2019.06.29"]
[Round "1.5"]
[White "Hrabusa, Matej"]
[Black "Petenyi, Tamas"]
[Result "0-1"]
[ECO "A49"]
[WhiteElo "2397"]
[BlackElo "2412"]
[Annotator "NA"]
[PlyCount "72"]
[EventDate "2019.06.29"]
[EventType "tourn"]
[EventCountry "SVK"]
[SourceTitle "playchess.com"]
[Source "ChessBase"]
[SourceQuality "1"]
[TimeControl "40/5400+30:1800+30"]

1. d4 {[%emt 0:00:00]} Nf6 {[%emt 0:00:00]} 2. Nf3 {[%emt 0:00:00]} g6 {[%emt 0:00:00]} 3. g3 {[%emt 0:00:00]} Bg7 {[%emt 0:00:00]} 4. Bg2 {[%emt 0:00:00]} O-O {[%emt 0:00:08]} 5. O-O {[%emt 0:00:04]} c5 {[%emt 0:01:13]} 6. c3 {[%emt 0:03:08]} Qc7 {[%emt 0:04:11]} 7. Re1 {[%emt 0:03:03]} d6 {[%emt 0:00:17]} 8. e4 {[%emt 0:02:09]} Bg4 {[%emt 0:01:25]} 9. h3 {[%emt 0:05:52]} Bxf3 {[%emt 0:00:07]} 10. Bxf3 {[%emt 0:00:09]} Nfd7 {[%emt 0:02:34]} 11. Be3 {[%emt 0:07:15]} Nc6 {[%emt 0:01:32]} 12. dxc5 {[%emt 0:03:25]} Nxc5 {[%emt 0:00:54]} 13. Qc2 {[%emt 0:06:48]} Ne5 {[%emt 0:06:48]} 14. Be2 {[%emt 0:02:52]} b5 {[%emt 0:01:33]} 15. Nd2 {[%emt 0:02:51]} Rab8 {[%emt 0:01:41]} 16. f4 {[%emt 0:03:13]} Ned7 {[%emt 0:02:09]} 17. a3 {[%emt 0:09:51]} a5 {[%emt 0:04:17]} 18. Bf2 {[%emt 0:10:29]} b4 {[%emt 0:03:00]} 19. axb4 {[%emt 0:00:32]} axb4 {[%emt 0:00:09]} 20. Bf1 {[%emt 0:05:41]} Rfc8 {[%emt 0:04:00]} 21. cxb4 {[%emt 0:05:00]} Rxb4 {[%emt 0:00:27]} 22. Ra2 {[%emt 0:02:15]} Qb8 {[%emt 0:02:04]} 23. Nc4 {[%emt 0:02:56]} Ne6 {[%emt 0:05:11]} 24. Rd1 {[%emt 0:04:12]} Ndc5 {[%emt 0:08:21]} 25. f5 {[%emt 0:05:04]} Ng5 {[%emt 0:02:36]} 26. Bxc5 {[%emt 0:02:55]} Rxc5 {[%emt 0:00:32]} 27. Rda1 {[%emt 0:00:38]} Bd4+ {[%emt 0:06:21]} 28. Kh1 {[%emt 0:01:33]} Qb7 {[%emt 0:00:35]} 29. Qd2 {[%emt 0:03:07]} Bf6 {[%emt 0:05:44]} 30. Ra8+ {[%emt 0:01:31]} Kg7 {[%emt 0:01:38]} 31. Bg2 {[%emt 0:01:34]} Nxe4 {[%emt 0:02:31]} 32. Na5 {[%emt 0:03:06]} Rxa5 {[%emt 0:01:19]} 33. R1xa5 {[%emt 0:00:52]} Nxd2 {[%emt 0:00:10]} 34. Bxb7 {[%emt 0:00:05]} Rxb7 {[%emt 0:00:04]} 35. g4 {[%emt 0:00:41]} Rxb2 {[%emt 0:01:14]} 36. fxg6 {[%emt 0:00:38]} Nf3 {[%emt 0:00:51]} 0-1

[Event "Ruzomberok GM 2019"]
[Site "Ruzomberok"]
[Date "2019.06.30"]
[Round "2.1"]
[White "Jurcik, Marian"]
[Black "Petenyi, Tamas"]
[Result "1/2-1/2"]
[ECO "B06"]
[WhiteElo "2501"]
[BlackElo "2412"]
[Annotator "ChessBase"]
[PlyCount "120"]
[EventDate "2019.06.29"]
[EventType "tourn"]
[EventCountry "SVK"]
[SourceTitle "playchess.com"]
[Source "ChessBase"]
[SourceQuality "1"]
[TimeControl "40/5400+30:1800+30"]

1. e4 {[%emt 0:00:00]} g6 {[%emt 0:01:01]} 2. d4 {[%emt 0:00:00]} Bg7 {[%emt 0:00:05]} 3. Nc3 {[%emt 0:00:13]} c6 {[%emt 0:01:49]} 4. Nf3 {[%emt 0:02:51]} b5 {[%emt 0:02:33]} 5. Bd3 {[%emt 0:03:07]} d6 {[%emt 0:00:36]} 6. h3 {[%emt 0:03:45]} Nd7 {[%emt 0:01:01]} 7. O-O {[%emt 0:03:29]} a6 {[%emt 0:03:38]} 8. a4 {[%emt 0:07:13]} b4 {[%emt 0:03:16]} 9. Ne2 {[%emt 0:00:59]} Qc7 {[%emt 0:04:34]} 10. a5 {[%emt 0:08:11]} Ngf6 {[%emt 0:00:59]} 11. Ng3 {[%emt 0:01:30]} O-O {[%emt 0:00:28]} 12. Qe1 {[%emt 0:07:05]} Ne8 {[%emt 0:07:09]} 13. Bg5 {[%emt 0:10:34]} f6 {[%emt 0:04:16]} 14. Bd2 {[%emt 0:00:35]} c5 {[%emt 0:02:01]} 15. Qe2 {[%emt 0:06:31]} e5 {[%emt 0:02:12]} 16. c3 {[%emt 0:07:37]} bxc3 {[%emt 0:01:46]} 17. bxc3 {[%emt 0:00:03]} Kh8 {[%emt 0:01:02]} 18. Bc4 {[%emt 0:02:17]} Ra7 {[%emt 0:04:16]} 19. h4 {[%emt 0:01:41]} cxd4 {[%emt 0:13:59]} 20. cxd4 {[%emt 0:00:43]} exd4 {[%emt 0:02:25]} 21. Nxd4 {[%emt 0:02:26]} Ne5 {[%emt 0:01:08]} 22. Be6 {[%emt 0:01:25]} Bd7 {[%emt 0:05:31]} 23. h5 {[%emt 0:02:38]} gxh5 {[%emt 0:06:09]} 24. Qxh5 {[%emt 0:04:09]} Qc8 {[%emt 0:09:40]} 25. Rac1 {[%emt 0:05:16]} Rc7 {[%emt 0:01:31]} 26. Rxc7 {[%emt 0:01:59]} Qxc7 {[%emt 0:01:54]} 27. Ngf5 {[%emt 0:01:44]} Qb7 {[%emt 0:04:16]} 28. Bh6 {[%emt 0:04:00]} Qxe4 {[%emt 0:04:26]} 29. Qxe8 {[%emt 0:04:30]} Bxh6 {[%emt 0:00:25]} 30. Qe7 {[%emt 0:01:02]} Bc6 {[%emt 0:05:07]} 31. Nxc6 {[%emt 0:04:41]} Nxc6 {[%emt 0:00:11]} 32. Qxd6 {[%emt 0:03:02]} Rd8 {[%emt 0:02:10]} 33. Qc7 {[%emt 0:00:23]} Qxe6 {[%emt 0:00:38]} 34. Nxh6 {[%emt 0:00:01]} Rd7 {[%emt 0:00:57]} 35. Qb6 {[%emt 0:00:55]} Kg7 {[%emt 0:02:16]} 36. Nf5+ {[%emt 0:00:02]} Qxf5 {[%emt 0:00:07]} 37. Qxc6 {[%emt 0:00:09]} Rd5 {[%emt 0:00:40]} 38. Qxa6 {[%emt 0:01:16]} Rxa5 {[%emt 0:00:06]} 39. Qb7+ {[%emt 0:00:45]} Kg6 {[%emt 0:00:18]} 40. Qb8 {[%emt 0:00:29]} Rb5 {[%emt 0:01:35]} 41. Qg8+ {[%emt 0:04:25]} Kh6 {[%emt 0:00:05]} 42. Qa2 {[%emt 0:02:21]} Qd5 {[%emt 0:00:39]} 43. Qa1 {[%emt 0:00:58]} Qe5 {[%emt 0:00:37]} 44. Qc1+ {[%emt 0:01:44]} Qg5 {[%emt 0:00:19]} 45. Qa3 {[%emt 0:00:27]} Qf5 {[%emt 0:00:19]} 46. Qe3+ {[%emt 0:01:28]} Qg5 {[%emt 0:02:05]} 47. Qh3+ {[%emt 0:01:13]} Qh5 {[%emt 0:00:10]} 48. Qd3 {[%emt 0:02:12]} Qf5 {[%emt 0:00:18]} 49. Qd2+ {[%emt 0:01:45]} Qg5 {[%emt 0:00:46]} 50. Qd6 {[%emt 0:01:21]} Qf5 {[%emt 0:00:07]} 51. Qd1 {[%emt 0:00:33]} Qd5 {[%emt 0:00:34]} 52. Qa4 {[%emt 0:02:53]} Qf5 {[%emt 0:00:35]} 53. Qa2 {[%emt 0:03:08]} Qd5 {[%emt 0:00:12]} 54. Qe2 {[%emt 0:04:18]} Qe5 {[%emt 0:00:34]} 55. Qg4 {[%emt 0:01:11]} Qf5 {[%emt 0:00:29]} 56. Qh4+ {[%emt 0:00:22]} Kg6 {[%emt 0:00:18]} 57. Qg3+ {[%emt 0:00:39]} Kh6 {[%emt 0:00:03]} 58. Qe3+ {[%emt 0:02:33]} Qg5 {[%emt 0:00:24]} 59. Qh3+ {[%emt 0:02:50]} Qh5 {[%emt 0:00:09]} 60. Qh1 {[%emt 0:02:28]} Qxh1+ {[%emt 0:00:32]} 1/2-1/2

[Event "Ruzomberok GM 2019"]
[Site "Ruzomberok"]
[Date "2019.06.30"]
[Round "2.2"]
[White "Pacher, Milan"]
[Black "Hrabusa, Matej"]
[Result "1/2-1/2"]
[ECO "A10"]
[WhiteElo "2434"]
[BlackElo "2397"]
[Annotator "NA"]
[PlyCount "92"]
[EventDate "2019.06.29"]
[EventType "tourn"]
[EventCountry "SVK"]
[SourceTitle "playchess.com"]
[Source "ChessBase"]
[SourceQuality "1"]
[TimeControl "40/5400+30:1800+30"]

1. c4 {[%emt 0:00:00]} f5 {[%emt 0:00:00]} 2. g3 {[%emt 0:00:00]} Nf6 {[%emt 0:00:00]} 3. Bg2 {[%emt 0:00:05]} g6 {[%emt 0:00:08]} 4. Nf3 {[%emt 0:00:25]} Bg7 {[%emt 0:00:10]} 5. O-O {[%emt 0:00:05]} O-O {[%emt 0:00:07]} 6. Nc3 {[%emt 0:00:05]} d6 {[%emt 0:00:16]} 7. d4 {[%emt 0:00:10]} Qe8 {[%emt 0:00:47]} 8. b4 {[%emt 0:00:46]} e5 {[%emt 0:03:48]} 9. dxe5 {[%emt 0:00:26]} dxe5 {[%emt 0:00:11]} 10. b5 {[%emt 0:02:56]} e4 {[%emt 0:09:24]} 11. Ng5 {[%emt 0:03:13]} h6 {[%emt 0:04:32]} 12. Nh3 {[%emt 0:00:04]} Qf7 {[%emt 0:05:24]} 13. Ba3 {[%emt 0:02:59]} Re8 {[%emt 0:01:11]} 14. Rc1 {[%emt 0:01:31]} a6 {[%emt 0:04:26]} 15. Nf4 {[%emt 0:06:37]} axb5 {[%emt 0:13:16]} 16. Nxb5 {[%emt 0:01:02]} Nc6 {[%emt 0:00:35]} 17. f3 {[%emt 0:06:07]} Rd8 {[%emt 0:06:31]} 18. Qb3 {[%emt 0:01:51]} g5 {[%emt 0:03:24]} 19. Nd5 {[%emt 0:00:50]} Nxd5 {[%emt 0:02:31]} 20. cxd5 {[%emt 0:00:03]} exf3 {[%emt 0:17:00]} 21. Bxf3 {[%emt 0:04:16]} Nd4 {[%emt 0:00:08]} 22. Nxd4 {[%emt 0:00:59]} Bxd4+ {[%emt 0:00:04]} 23. e3 {[%emt 0:01:29]} Be5 {[%emt 0:02:05]} 24. Bb2 {[%emt 0:02:03]} Bxb2 {[%emt 0:05:31]} 25. Qxb2 {[%emt 0:00:02]} Ra6 {[%emt 0:03:58]} 26. e4 {[%emt 0:06:41]} f4 {[%emt 0:02:42]} 27. e5 {[%emt 0:02:08]} Qg7 {[%emt 0:02:33]} 28. gxf4 {[%emt 0:01:47]} Rf8 {[%emt 0:02:51]} 29. Qc2 {[%emt 0:04:03]} Bh3 {[%emt 0:02:01]} 30. Rfe1 {[%emt 0:02:45]} Ra3 {[%emt 0:02:24]} 31. Be4 {[%emt 0:07:03]} gxf4+ {[%emt 0:01:44]} 32. Kf2 {[%emt 0:01:24]} Qe7 {[%emt 0:01:31]} 33. Rg1+ {[%emt 0:06:02]} Kh8 {[%emt 0:00:08]} 34. Rg6 {[%emt 0:01:01]} Qh4+ {[%emt 0:01:17]} 35. Kg1 {[%emt 0:00:09]} Re3 {[%emt 0:01:31]} 36. Qf2 {[%emt 0:03:20]} Qxf2+ {[%emt 0:00:58]} 37. Kxf2 {[%emt 0:00:02]} Rxe4 {[%emt 0:00:12]} 38. Rxh6+ {[%emt 0:00:05]} Kg8 {[%emt 0:00:29]} 39. e6 {[%emt 0:03:39]} Bxe6 {[%emt 0:01:08]} 40. Rxe6 {[%emt 0:01:19]} Rxe6 {[%emt 0:01:08]} 41. dxe6 {[%emt 0:30:02]} Ra8 {[%emt 0:06:34]} 42. Rxc7 {[%emt 0:00:00]} Rxa2+ {[%emt 0:00:51]} 43. Kf3 {[%emt 0:00:00]} Kf8 {[%emt 0:02:07]} 44. h4 {[%emt 0:00:00]} Ra6 {[%emt 0:02:46]} 45. Rf7+ {[%emt 0:00:00]} Ke8 {[%emt 0:01:44]} 46. Rxb7 {[%emt 0:00:00]} Rxe6 {[%emt 0:00:20] Ke4} 1/2-1/2

[Event "Ruzomberok GM 2019"]
[Site "Ruzomberok"]
[Date "2019.06.30"]
[Round "2.3"]
[White "Mazur, Stefan"]
[Black "Manik, Mikulas"]
[Result "1-0"]
[ECO "B69"]
[WhiteElo "2426"]
[BlackElo "2399"]
[Annotator "NA"]
[PlyCount "91"]
[EventDate "2019.06.29"]
[EventType "tourn"]
[EventCountry "SVK"]
[SourceTitle "playchess.com"]
[Source "ChessBase"]
[SourceQuality "1"]
[TimeControl "40/5400+30:1800+30"]

1. e4 {[%emt 0:00:00]} c5 {[%emt 0:00:00]} 2. Nf3 {[%emt 0:00:00]} d6 {[%emt 0:00:00]} 3. d4 {[%emt 0:00:30]} cxd4 {[%emt 0:00:00]} 4. Nxd4 {[%emt 0:00:06]} Nf6 {[%emt 0:00:00]} 5. Nc3 {[%emt 0:00:12]} Nc6 {[%emt 0:00:00]} 6. Bg5 {[%emt 0:00:09]} e6 {[%emt 0:00:00]} 7. Qd2 {[%emt 0:00:06]} a6 {[%emt 0:00:00]} 8. O-O-O {[%emt 0:00:09]} Bd7 {[%emt 0:00:00]} 9. f4 {[%emt 0:00:40]} Be7 {[%emt 0:00:00]} 10. Nf3 {[%emt 0:00:10]} b5 {[%emt 0:00:02]} 11. Bxf6 {[%emt 0:00:09]} gxf6 {[%emt 0:00:36]} 12. f5 {[%emt 0:00:18]} Qa5 {[%emt 0:01:58]} 13. Kb1 {[%emt 0:01:09]} h5 {[%emt 0:00:08]} 14. g3 {[%emt 0:01:26]} Rc8 {[%emt 0:03:45]} 15. Bh3 {[%emt 0:00:23]} Ne5 {[%emt 0:00:37]} 16. Nxe5 {[%emt 0:00:17]} fxe5 {[%emt 0:00:07]} 17. Rhf1 {[%emt 0:00:23]} b4 {[%emt 0:06:59]} 18. Ne2 {[%emt 0:00:21]} Qc7 {[%emt 0:01:56]} 19. Nc1 {[%emt 0:09:57]} a5 {[%emt 0:00:49]} 20. Nd3 {[%emt 0:00:43]} Qb7 {[%emt 0:05:21]} 21. Qe1 {[%emt 0:01:26]} Rc4 {[%emt 0:10:37]} 22. Qf2 {[%emt 0:08:08]} Kd8 {[%emt 0:16:31]} 23. b3 {[%emt 0:13:37]} Rd4 {[%emt 0:06:53]} 24. Nb2 {[%emt 0:11:24]} Qxe4 {[%emt 0:09:16]} 25. f6 {[%emt 0:01:02]} Bf8 {[%emt 0:00:12]} 26. Bg2 {[%emt 0:00:27]} Qg4 {[%emt 0:02:10]} 27. Bf3 {[%emt 0:07:19]} Qg5 {[%emt 0:03:50]} 28. Rxd4 {[%emt 0:06:40]} exd4 {[%emt 0:02:39]} 29. Qxd4 {[%emt 0:00:15]} Qb5 {[%emt 0:15:24]} 30. Rd1 {[%emt 0:02:59]} d5 {[%emt 0:00:41]} 31. Qa7 {[%emt 0:07:26]} Bd6 {[%emt 0:01:18]} 32. Qa8+ {[%emt 0:02:07]} Qb8 {[%emt 0:00:40]} 33. Qxa5+ {[%emt 0:02:32]} Qc7 {[%emt 0:04:50]} 34. Qa8+ {[%emt 0:11:30]} Qc8 {[%emt 0:01:18]} 35. Qa5+ {[%emt 0:00:38]} Qc7 {[%emt 0:00:08]} 36. Qa8+ {[%emt 0:07:09]} Qc8 {[%emt 0:00:16]} 37. Bxd5 {[%emt 0:00:22]} Qxa8 {[%emt 0:00:27]} 38. Bxa8 {[%emt 0:00:02]} Kc7 {[%emt 0:00:08]} 39. Nc4 {[%emt 0:02:05]} Bxg3 {[%emt 0:00:50]} 40. hxg3 {[%emt 0:01:01]} Rxa8 {[%emt 0:00:02]} 41. Rxd7+ {[%emt 0:31:53]} Kxd7 {[%emt 0:30:01]} 42. Nb6+ {[%emt 0:00:08]} Kc6 {[%emt 0:00:34]} 43. Nxa8 {[%emt 0:00:06]} Kb7 {[%emt 0:00:04]} 44. c3 {[%emt 0:00:11]} bxc3 {[%emt 0:00:52]} 45. Kc2 {[%emt 0:00:05]} Kxa8 {[%emt 0:00:21]} 46. Kxc3 {[%emt 0:00:07]} 1-0

[Event "Ruzomberok GM 2019"]
[Site "Ruzomberok"]
[Date "2019.06.30"]
[Round "2.4"]
[White "Repka, Christopher"]
[Black "Pechac, Jergus"]
[Result "1/2-1/2"]
[ECO "B34"]
[WhiteElo "2482"]
[BlackElo "2473"]
[Annotator "ChessBase"]
[PlyCount "61"]
[EventDate "2019.06.29"]
[EventType "tourn"]
[EventCountry "SVK"]
[SourceTitle "playchess.com"]
[Source "ChessBase"]
[SourceQuality "1"]
[TimeControl "40/5400+30:1800+30"]

1. Nc3 {[%emt 0:00:00]} c5 {[%emt 0:00:37]} 2. Nf3 {[%emt 0:02:32]} Nf6 {[%emt 0:00:22]} 3. e4 {[%emt 0:00:26]} Nc6 {[%emt 0:00:06]} 4. d4 {[%emt 0:00:17]} cxd4 {[%emt 0:00:07]} 5. Nxd4 {[%emt 0:00:03]} e5 {[%emt 0:00:11]} 6. Ndb5 {[%emt 0:00:53]} d6 {[%emt 0:00:06]} 7. Bg5 {[%emt 0:00:17]} a6 {[%emt 0:00:07]} 8. Bxf6 {[%emt 0:00:06]} gxf6 {[%emt 0:00:07]} 9. Na3 {[%emt 0:00:03]} f5 {[%emt 0:05:28]} 10. Qh5 {[%emt 0:08:04]} b5 {[%emt 0:01:28]} 11. exf5 {[%emt 0:05:16]} b4 {[%emt 0:05:03]} 12. Bc4 {[%emt 0:00:06]} Ra7 {[%emt 0:00:31]} 13. Nab5 {[%emt 0:00:23]} axb5 {[%emt 0:07:32]} 14. Nxb5 {[%emt 0:00:04]} Rb7 {[%emt 0:05:15]} 15. O-O-O {[%emt 0:04:41]} Qf6 {[%emt 0:11:32]} 16. f4 {[%emt 0:01:58]} Na5 {[%emt 0:09:13]} 17. Qe2 {[%emt 0:04:22]} Bd7 {[%emt 0:09:01]} 18. Rd5 {[%emt 0:02:47]} Qxf5 {[%emt 0:08:28]} 19. Rf1 {[%emt 0:01:26]} Nxc4 {[%emt 0:01:23]} 20. Qxc4 {[%emt 0:00:06]} Qe6 {[%emt 0:00:50]} 21. Qd3 {[%emt 0:04:57]} e4 {[%emt 0:04:24]} 22. Nxd6+ {[%emt 0:00:09]} Qxd6 {[%emt 0:06:24]} 23. Qxe4+ {[%emt 0:07:51]} Qe7 {[%emt 0:00:09]} 24. Re5 {[%emt 0:01:32]} Be6 {[%emt 0:00:11]} 25. f5 {[%emt 0:00:04]} Bg7 {[%emt 0:01:58]} 26. fxe6 {[%emt 0:01:25]} Bxe5 {[%emt 0:04:09]} 27. Qc6+ {[%emt 0:01:15]} Kf8 {[%emt 0:00:05]} 28. Rxf7+ {[%emt 0:00:14]} Qxf7 {[%emt 0:00:09]} 29. exf7 {[%emt 0:00:05]} Re7 {[%emt 0:01:53]} 30. Qc4 {[%emt 0:01:18]} Rxf7 {[%emt 0:00:50]} 31. Qxb4+ {[%emt 0:01:14]} 1/2-1/2

[Event "Ruzomberok GM 2019"]
[Site "Ruzomberok"]
[Date "2019.06.30"]
[Round "2.5"]
[White "Druska, Juraj"]
[Black "Nayhebaver, Martin"]
[Result "1/2-1/2"]
[ECO "E20"]
[WhiteElo "2460"]
[BlackElo "2473"]
[Annotator "ChessBase"]
[PlyCount "61"]
[EventDate "2019.06.29"]
[EventType "tourn"]
[EventCountry "SVK"]
[SourceTitle "playchess.com"]
[Source "ChessBase"]
[SourceQuality "1"]
[TimeControl "40/5400+30:1800+30"]

1. d4 {[%emt 0:01:41]} Nf6 {[%emt 0:00:00]} 2. c4 {[%emt 0:00:10]} e6 {[%emt 0:00:29]} 3. Nc3 {[%emt 0:00:14]} Bb4 {[%emt 0:00:31]} 4. g3 {[%emt 0:00:12]} O-O {[%emt 0:00:40]} 5. Bg2 {[%emt 0:00:09]} d5 {[%emt 0:00:37]} 6. Nf3 {[%emt 0:00:38]} c6 {[%emt 0:00:55]} 7. Qb3 {[%emt 0:06:08]} a5 {[%emt 0:06:02]} 8. a3 {[%emt 0:03:45]} Be7 {[%emt 0:05:33]} 9. O-O {[%emt 0:00:21]} Nbd7 {[%emt 0:02:15]} 10. Rd1 {[%emt 0:06:14]} Re8 {[%emt 0:07:48]} 11. Qa2 {[%emt 0:16:30]} Qb6 {[%emt 0:07:39]} 12. e3 {[%emt 0:01:39]} h6 {[%emt 0:08:38]} 13. Nd2 {[%emt 0:11:17]} Rd8 {[%emt 0:06:32]} 14. b3 {[%emt 0:10:18]} Qc7 {[%emt 0:21:07]} 15. Bb2 {[%emt 0:08:45]} dxc4 {[%emt 0:02:59]} 16. Nxc4 {[%emt 0:04:42]} b5 {[%emt 0:04:39]} 17. Ne5 {[%emt 0:04:43]} Bb7 {[%emt 0:01:07]} 18. Rac1 {[%emt 0:02:11]} Qb6 {[%emt 0:00:07]} 19. Ne4 {[%emt 0:01:16]} Nxe5 {[%emt 0:02:25]} 20. Nxf6+ {[%emt 0:00:42]} Bxf6 {[%emt 0:00:09]} 21. dxe5 {[%emt 0:00:06]} Be7 {[%emt 0:00:08]} 22. a4 {[%emt 0:03:58]} Bb4 {[%emt 0:09:51]} 23. Qa1 {[%emt 0:03:57]} Rac8 {[%emt 0:01:54]} 24. Bc3 {[%emt 0:01:05]} bxa4 {[%emt 0:02:44]} 25. Rxd8+ {[%emt 0:05:27]} Rxd8 {[%emt 0:00:08]} 26. Bxb4 {[%emt 0:00:09]} axb4 {[%emt 0:00:39]} 27. bxa4 {[%emt 0:00:06]} Ra8 {[%emt 0:02:49]} 28. Qd4 {[%emt 0:00:51]} Qxd4 {[%emt 0:04:51]} 29. exd4 {[%emt 0:00:02]} Rxa4 {[%emt 0:00:19]} 30. Bxc6 {[%emt 0:00:12]} Bxc6 {[%emt 0:00:13]} 31. Rxc6 {[%emt 0:00:05]} 1/2-1/2